fUSD/lending_fUSD_20240114
["ID","MTS","AMOUNT","RATE_DAILY","PERIOD"]
[311600523,1705264259022,-500.0,0.00030136,2]
[311600524,1705264259032,-500.0,0.00030136,2]
[311600525,1705264259041,-596.78,0.00030136,2]
[311600526,1705264259050,-500.0,0.00030136,2]
[311600527,1705264259060,-2156.48,0.00030136,2]
[311600528,1705264259069,-500.0,0.00030136,2]
[311600529,1705264259079,-500.0,0.00030136,2]
[311600530,1705264259089,-500.0,0.00030136,2]
[311600531,1705264259102,-2657.18,0.00030136,2]
[311600532,1705264259111,-500.0,0.00030136,2]
[311600533,1705264259121,-723.46,0.00030136,2]
[311600534,1705264259131,-500.0,0.00030136,2]
[311600535,1705264259142,-539.01,0.00030136,2]
[311600536,1705264259152,-500.0,0.00030136,2]
[311600537,1705264259161,-1641.51,0.00030136,2]
[311600538,1705264259170,-1057.67,0.00030136,2]
[311600539,1705264259179,-2203.79,0.00030136,2]
[311600540,1705264259189,-500.0,0.00030136,2]
[311600541,1705264259198,-500.0,0.00030136,2]
[311600542,1705264259207,-3320.2,0.00030136,2]
[311600543,1705264259218,-500.0,0.00030136,2]
[311600544,1705264259227,-2139.26,0.00030136,2]
[311600545,1705264259236,-500.0,0.00030136,2]
[311600546,1705264259245,-1109.41,0.00030136,2]
[311600547,1705264259255,-500.0,0.00030136,2]
[311600548,1705264259265,-500.0,0.00030136,2]
[311600549,1705264259274,-500.0,0.00030136,2]
[311600550,1705264259283,-500.0,0.00030136,2]
[311600551,1705264259293,-500.0,0.00030136,2]
[311600552,1705264259302,-1312.2,0.00030136,2]
[311600553,1705264259311,-1370.66,0.00030136,2]
[311600554,1705264259320,-500.0,0.00030136,2]
[311600555,1705264259329,-500.0,0.00030136,2]
[311600556,1705264259338,-2007.57,0.00030136,2]
[311600557,1705264259466,-1000.0,0.00030136,2]
[311600558,1705264259482,-500.0,0.00030136,2]
[311600559,1705264259492,-153.84,0.00030137,2]
[311600560,1705264259501,-155.0,0.00030137,2]
[311600561,1705264259510,-172.94070781,0.0003031,5]
[311600562,1705264259519,-151.75914572,0.000304,2]
[311600563,1705264259529,-244.15309976,0.00030409,4]
[311600564,1705264259538,-657.651084,0.00030409,4]
[311600565,1705264259548,-500.0,0.0003041,2]
[311600566,1705264259557,-500.0,0.0003041,2]
[311600567,1705264259566,-287.68934641,0.0003041,2]
[311600568,1705264259576,-500.0,0.0003041,2]
[311600569,1705264259586,-500.0,0.0003041,2]
[311600570,1705264259597,-500.0,0.0003041,2]
[311600571,1705264259606,-500.0,0.0003041,2]
[311600572,1705264259616,-500.0,0.0003041,2]
[311600573,1705264259626,-500.0,0.0003041,2]
[311600574,1705264259636,-500.0,0.0003041,2]
[311600575,1705264259645,-500.0,0.0003041,2]
[311600576,1705264259654,-500.0,0.0003041,2]
[311600577,1705264259664,-500.0,0.0003041,2]
[311600578,1705264259673,-500.0,0.0003041,2]
[311600579,1705264259683,-500.0,0.0003041,2]
[311600580,1705264259692,-500.0,0.0003041,2]
[311600581,1705264259702,-500.0,0.0003041,2]
[311600582,1705264259711,-500.0,0.0003041,2]
[311600583,1705264259721,-500.0,0.0003041,2]
[311600584,1705264259730,-500.0,0.0003041,2]
[311600585,1705264259739,-500.0,0.0003041,2]
[311600586,1705264259749,-500.0,0.0003041,2]
[311600587,1705264259758,-500.0,0.0003041,2]
[311600588,1705264259767,-500.0,0.0003041,2]
[311600589,1705264259777,-500.0,0.0003041,2]
[311600590,1705264259787,-522.7,0.0003041,2]
[311600591,1705264259797,-500.0,0.0003041,2]
[311600592,1705264259807,-500.0,0.0003041,2]
[311600593,1705264259816,-500.0,0.0003041,2]
[311600594,1705264259825,-500.0,0.0003041,2]
[311600595,1705264259835,-504.32992265,0.0003041,2]
[311600596,1705264259847,-500.0,0.0003041,2]
[311600597,1705264259858,-543.8,0.0003041,2]
[311600598,1705264259867,-500.0,0.0003041,2]
[311600599,1705264259877,-500.0,0.0003041,2]
[311600600,1705264259886,-250.0,0.0003041,2]
[311600601,1705264259896,-518.27,0.0003041,2]
[311600602,1705264259905,-500.0,0.0003041,2]
[311600603,1705264259915,-559.96974326,0.0003041,2]
[311600604,1705264259924,-512.56,0.0003041,2]
[311600605,1705264259934,-500.0,0.0003041,2]
[311600606,1705264259943,-500.0,0.0003041,2]
[311600607,1705264259952,-500.0,0.0003041,2]
[311600608,1705264259961,-500.0,0.0003041,2]
[311600609,1705264259971,-528.06,0.0003041,2]
[311600610,1705264259981,-500.0,0.0003041,2]
[311600611,1705264259991,-500.0,0.0003041,2]
[311600612,1705264260000,-500.0,0.0003041,2]
[311600613,1705264260009,-500.0,0.0003041,2]
[311600614,1705264260019,-640.31212211,0.0003041,2]
[311600615,1705264260028,-538.04,0.0003041,2]
[311600616,1705264260038,-500.0,0.0003041,2]
[311600617,1705264260047,-322.44787188,0.0003041,30]
[311600618,1705264260057,-534.50223056,0.0003041,2]
[311600619,1705264260066,-500.0,0.0003041,2]
[311600620,1705264260076,-500.0,0.0003041,2]
[311600621,1705264260086,-194.5120734,0.0003041,2]
[311600622,1705264260097,-500.0,0.0003041,2]
[311600623,1705264260106,-500.0,0.0003041,2]
[311600624,1705264260115,-829.92,0.0003041,2]
[311600625,1705264260125,-500.0,0.0003041,2]
[311600626,1705264260134,-500.0,0.0003041,2]
[311600627,1705264260144,-500.0,0.0003041,2]
[311600628,1705264260153,-831.82,0.0003041,2]
[311600629,1705264260163,-500.0,0.0003041,2]
[311600630,1705264260172,-500.0,0.0003041,2]
[311600631,1705264260182,-500.0,0.0003041,2]
[311600632,1705264260191,-500.0,0.0003041,2]
[311600633,1705264260200,-500.0,0.0003041,2]
[311600634,1705264260210,-500.0,0.0003041,2]
[311600635,1705264260219,-500.0,0.0003041,2]
[311600636,1705264260229,-500.0,0.0003041,2]
[311600637,1705264260238,-500.0,0.0003041,2]
[311600638,1705264260248,-500.0,0.0003041,2]
[311600639,1705264260257,-500.0,0.0003041,2]
[311600640,1705264260267,-753.34,0.0003041,2]
[311600641,1705264260276,-500.0,0.0003041,2]
[311600642,1705264260286,-500.0,0.0003041,2]
[311600643,1705264260295,-500.0,0.0003041,2]
[311600644,1705264260304,-261.62997141,0.0003041,2]
[311600645,1705264260314,-716.55,0.0003041,2]
[311600646,1705264260323,-500.0,0.0003041,2]
[311600647,1705264260333,-500.0,0.0003041,2]
[311600648,1705264260342,-500.0,0.0003041,2]
[311600649,1705264260354,-500.0,0.0003041,2]
[311600650,1705264260363,-500.0,0.0003041,2]
[311600651,1705264260372,-500.0,0.0003041,2]
[311600652,1705264260382,-500.0,0.0003041,2]
[311600653,1705264260391,-500.0,0.0003041,2]
[311600654,1705264260400,-549.71,0.0003041,2]
[311600655,1705264260409,-500.0,0.0003041,2]
[311600656,1705264260418,-500.0,0.0003041,2]
[311600657,1705264260428,-500.0,0.0003041,2]
[311600658,1705264260437,-500.0,0.0003041,2]
[311600659,1705264260446,-384.14610744,0.0003041,2]
[311600660,1705264260457,-504.29,0.0003041,2]
[311600661,1705264260467,-500.0,0.0003041,2]
[311600662,1705264260477,-534.55,0.0003041,2]
[311600663,1705264260487,-500.0,0.0003041,2]
[311600664,1705264260496,-500.0,0.0003041,2]
[311600665,1705264260506,-500.0,0.0003041,2]
[311600666,1705264260517,-500.0,0.0003041,2]
[311600667,1705264260527,-500.0,0.0003041,2]
[311600668,1705264260537,-500.0,0.0003041,2]
[311600669,1705264260547,-511.27,0.0003041,2]
[311600670,1705264260556,-500.0,0.0003041,2]
[311600671,1705264260566,-554.03,0.0003041,2]
[311600672,1705264260576,-500.0,0.0003041,2]
[311600673,1705264260586,-662.74,0.0003041,2]
[311600674,1705264260599,-590.75,0.0003041,2]
[311600675,1705264260609,-500.0,0.0003041,2]
[311600676,1705264260619,-500.0,0.0003041,2]
[311600677,1705264260629,-500.0,0.0003041,2]
[311600678,1705264260639,-500.0,0.0003041,2]
[311600679,1705264260648,-500.0,0.0003041,2]
[311600680,1705264260657,-500.0,0.0003041,2]
[311600681,1705264260667,-500.0,0.0003041,2]
[311600682,1705264260676,-500.0,0.0003041,2]
[311600683,1705264260686,-500.0,0.0003041,2]
[311600684,1705264260695,-500.0,0.0003041,2]
[311600685,1705264260705,-590.71277847,0.0003041,2]
[311600686,1705264260714,-500.0,0.0003041,15]
[311600687,1705264260723,-500.0,0.0003041,2]
[311600688,1705264260732,-852.63,0.0003041,2]
[311600689,1705264260741,-500.0,0.0003041,2]
[311600690,1705264260751,-500.0,0.0003041,2]
[311600691,1705264260760,-272.27684243,0.0003041,2]
[311600692,1705264260769,-227.58557562,0.0003041,2]
[311600693,1705264260778,-500.0,0.0003041,2]
[311600694,1705264260788,-500.0,0.0003041,2]
[311600695,1705264260798,-500.0,0.0003041,2]
[311600696,1705264260807,-500.0,0.0003041,2]
[311600697,1705264260816,-500.0,0.0003041,2]
[311600698,1705264260826,-500.0,0.0003041,2]
[311600699,1705264260836,-500.0,0.0003041,2]
[311600700,1705264260849,-500.0,0.0003041,2]
[311600701,1705264260859,-500.0,0.0003041,2]
[311600702,1705264260869,-500.0,0.0003041,2]
[311600703,1705264260879,-500.0,0.0003041,2]
[311600704,1705264260888,-500.0,0.0003041,2]
[311600705,1705264260898,-500.0,0.0003041,2]
[311600706,1705264260907,-500.0,0.0003041,2]
[311600707,1705264260917,-500.0,0.0003041,2]
[311600708,1705264260926,-500.0,0.0003041,2]
[311600709,1705264260936,-500.0,0.0003041,2]
[311600710,1705264260945,-545.59729091,0.0003041,2]
[311600711,1705264260954,-500.0,0.0003041,2]
[311600712,1705264260964,-500.0,0.0003041,2]
[311600713,1705264260973,-556.75,0.0003041,2]
[311600714,1705264260983,-500.0,0.0003041,2]
[311600715,1705264260992,-500.0,0.0003041,2]
[311600716,1705264261002,-500.0,0.0003041,2]
[311600717,1705264261011,-500.0,0.0003041,2]
[311600718,1705264261021,-500.0,0.0003041,2]
[311600719,1705264261031,-500.0,0.0003041,2]
[311600720,1705264261041,-500.0,0.0003041,2]
[311600721,1705264261051,-500.0,0.0003041,2]
[311600722,1705264261060,-500.0,0.0003041,2]
[311600723,1705264261070,-500.0,0.0003041,2]
[311600724,1705264261079,-584.84,0.0003041,2]
[311600725,1705264261089,-500.0,0.0003041,2]
[311600726,1705264261102,-500.0,0.0003041,2]
[311600727,1705264261111,-500.0,0.0003041,2]
[311600728,1705264261120,-955.59,0.0003041,2]
[311600729,1705264261131,-1000.0,0.0003041,2]
[311600730,1705264261141,-598.76714425,0.0003041,2]
[311600731,1705264261151,-500.0,0.0003041,2]
[311600732,1705264261161,-337.97456539,0.0003041,2]
[311600733,1705264261170,-500.0,0.0003041,2]
[311600734,1705264261179,-500.0,0.0003041,2]
[311600735,1705264261189,-500.0,0.0003041,2]
[311600736,1705264261198,-500.0,0.0003041,2]
[311600737,1705264261207,-500.0,0.0003041,2]
[311600738,1705264261217,-500.0,0.0003041,2]
[311600739,1705264261227,-500.0,0.0003041,2]
[311600740,1705264261236,-500.0,0.0003041,2]
[311600741,1705264261245,-500.0,0.0003041,2]
[311600742,1705264261255,-500.0,0.0003041,2]
[311600743,1705264261265,-904.67,0.0003041,2]
[311600744,1705264261274,-500.0,0.0003041,2]
[311600745,1705264261283,-500.0,0.0003041,2]
[311600746,1705264261292,-500.0,0.0003041,2]
[311600747,1705264261301,-500.0,0.0003041,2]
[311600748,1705264261311,-500.0,0.0003041,2]
[311600749,1705264261321,-500.0,0.0003041,2]
[311600750,1705264261330,-583.14977065,0.0003041,2]
[311600751,1705264261339,-500.0,0.0003041,2]
[311600752,1705264261350,-500.0,0.0003041,2]
[311600753,1705264261360,-500.0,0.0003041,2]
[311600754,1705264261369,-500.0,0.0003041,2]
[311600755,1705264261378,-500.0,0.0003041,2]
[311600756,1705264261388,-500.0,0.0003041,2]
[311600757,1705264261398,-500.0,0.0003041,2]
[311600758,1705264261407,-508.74,0.0003041,2]
[311600759,1705264261417,-500.0,0.0003041,2]
[311600760,1705264261426,-500.0,0.0003041,2]
[311600761,1705264261435,-500.0,0.0003041,2]
[311600762,1705264261445,-500.0,0.0003041,2]
[311600763,1705264261455,-501.92,0.0003041,2]
[311600764,1705264261464,-500.0,0.0003041,2]
[311600765,1705264261474,-500.0,0.0003041,2]
[311600766,1705264261484,-537.25190468,0.0003041,2]
[311600767,1705264261493,-502.98,0.0003041,2]
[311600768,1705264261503,-500.0,0.0003041,2]
[311600769,1705264261513,-549.05,0.0003041,2]
[311600770,1705264261523,-500.0,0.0003041,2]
[311600771,1705264261533,-500.0,0.0003041,2]
[311600772,1705264261543,-500.0,0.0003041,2]
[311600773,1705264261553,-768.43,0.0003041,2]
[311600774,1705264261562,-500.0,0.0003041,2]
[311600775,1705264261573,-500.0,0.0003041,2]
[311600776,1705264261902,-500.0,0.0003041,2]
[311600777,1705264261913,-500.0,0.0003041,2]
[311600778,1705264261924,-500.0,0.0003041,2]
[311600779,1705264261934,-733.75,0.0003041,2]
[311600780,1705264261944,-1482.34,0.0003041,2]
[311600781,1705264261954,-500.0,0.0003041,2]
[311600782,1705264261964,-500.0,0.0003041,2]
[311600783,1705264261973,-500.0,0.0003041,2]
[311600784,1705264261983,-987.24,0.0003041,2]
[311600785,1705264261992,-500.0,0.0003041,2]
[311600786,1705264262002,-500.0,0.0003041,2]
[311600787,1705264262012,-500.0,0.0003041,2]
[311600788,1705264262022,-500.0,0.0003041,2]
[311600789,1705264262032,-500.0,0.0003041,2]
[311600790,1705264262041,-510.47869416,0.0003041,2]
[311600791,1705264262050,-500.0,0.0003041,2]
[311600792,1705264262060,-500.0,0.0003041,2]
[311600793,1705264262070,-500.0,0.0003041,2]
[311600794,1705264262079,-500.0,0.0003041,2]
[311600795,1705264262089,-207.44501633,0.0003041,2]
[311600796,1705264262100,-500.0,0.0003041,2]
[311600797,1705264262110,-500.0,0.0003041,2]
[311600798,1705264262119,-500.0,0.0003041,2]
[311600799,1705264262130,-500.0,0.0003041,2]
[311600800,1705264262143,-522.06,0.0003041,2]
[311600801,1705264262153,-500.0,0.0003041,2]
[311600802,1705264262162,-902.15,0.0003041,2]
[311600803,1705264262172,-500.0,0.0003041,2]
[311600804,1705264262181,-500.0,0.0003041,2]
[311600805,1705264262191,-500.0,0.0003041,2]
[311600806,1705264262201,-500.0,0.0003041,2]
[311600807,1705264262211,-500.0,0.0003041,2]
[311600808,1705264262221,-500.0,0.0003041,2]
[311600809,1705264262231,-500.0,0.0003041,2]
[311600810,1705264262241,-500.0,0.0003041,2]
[311600811,1705264262251,-633.15,0.0003041,2]
[311600812,1705264262261,-500.0,0.0003041,2]
[311600813,1705264262271,-500.0,0.0003041,2]
[311600814,1705264262281,-500.0,0.0003041,2]
[311600815,1705264262290,-500.0,0.0003041,2]
[311600816,1705264262300,-500.0,0.0003041,2]
[311600817,1705264262309,-503.35874424,0.0003041,2]
[311600818,1705264262320,-500.0,0.0003041,2]
[311600819,1705264262331,-733.43,0.0003041,2]
[311600820,1705264262342,-550.1996002,0.0003041,2]
[311600821,1705264262353,-551.12530833,0.0003041,2]
[311600822,1705264262363,-500.0,0.0003041,2]
[311600823,1705264262373,-681.94,0.0003041,2]
[311600824,1705264262383,-500.0,0.0003041,2]
[311600825,1705264262393,-500.0,0.0003041,2]
[311600826,1705264262403,-503.61432546,0.0003041,2]
[311600827,1705264262413,-500.0,0.0003041,2]
[311600828,1705264262424,-500.0,0.0003041,2]
[311600829,1705264262435,-500.0,0.0003041,2]
[311600830,1705264262445,-500.0,0.0003041,2]
[311600831,1705264262455,-500.0,0.0003041,2]
[311600832,1705264262466,-861.38,0.0003041,2]
[311600833,1705264262477,-731.62,0.0003041,2]
[311600834,1705264262487,-500.0,0.0003041,2]
[311600835,1705264262497,-500.0,0.0003041,2]
[311600836,1705264262508,-607.46,0.0003041,2]
[311600837,1705264262518,-871.23,0.0003041,2]
[311600838,1705264262528,-540.76,0.0003041,2]
[311600839,1705264262538,-500.0,0.0003041,2]
[311600840,1705264262548,-500.0,0.0003041,2]
[311600841,1705264262557,-500.0,0.0003041,2]
[311600842,1705264262568,-500.0,0.0003041,2]
[311600843,1705264262578,-500.0,0.0003041,2]
[311600844,1705264262588,-500.0,0.0003041,2]
[311600845,1705264262601,-500.0,0.0003041,2]
[311600846,1705264262611,-573.03,0.0003041,2]
[311600847,1705264262622,-500.0,0.0003041,2]
[311600848,1705264262635,-500.0,0.0003041,2]
[311600849,1705264262645,-500.0,0.0003041,2]
[311600850,1705264262657,-500.0,0.0003041,2]
[311600851,1705264262667,-541.18,0.0003041,2]
[311600852,1705264262679,-205.21036985,0.0003041,2]
[311600853,1705264262691,-500.0,0.0003041,2]
[311600854,1705264262704,-611.9,0.0003041,30]
[311600855,1705264262714,-500.0,0.0003041,2]
[311600856,1705264262726,-500.0,0.0003041,2]
[311600857,1705264262737,-500.0,0.0003041,2]
[311600858,1705264262747,-1043.04,0.0003041,2]
[311600859,1705264262758,-524.14,0.0003041,2]
[311600860,1705264262768,-500.0,0.0003041,2]
[311600861,1705264262777,-500.0,0.0003041,2]
[311600862,1705264262788,-971.45,0.0003041,2]
[311600863,1705264262798,-720.76,0.0003041,2]
[311600864,1705264262809,-1331.65,0.0003041,2]
[311600865,1705264262819,-500.0,0.0003041,2]
[311600866,1705264262830,-500.0,0.0003041,2]
[311600867,1705264262841,-500.0,0.0003041,2]
[311600868,1705264262853,-500.0,0.0003041,2]
[311600869,1705264262866,-500.0,0.0003041,2]
[311600870,1705264262877,-500.0,0.0003041,2]
[311600871,1705264262888,-500.0,0.0003041,2]
[311600872,1705264262899,-1023.33046353,0.0003041,30]
[311600873,1705264262909,-887.35,0.0003041,2]
[311600874,1705264262919,-500.0,0.0003041,2]
[311600875,1705264262929,-500.0,0.0003041,2]
[311600876,1705264262940,-500.0,0.0003041,2]
[311600877,1705264262950,-1632.65,0.0003041,2]
[311600878,1705264262961,-1287.99,0.0003041,2]
[311600879,1705264262971,-500.0,0.0003041,2]
[311600880,1705264262980,-500.0,0.0003041,2]
[311600881,1705264262990,-500.0,0.0003041,2]
[311600882,1705264262999,-500.0,0.0003041,2]
[311600883,1705264263009,-500.0,0.0003041,2]
[311600884,1705264263019,-568.32,0.0003041,2]
[311600885,1705264263029,-1075.72,0.0003041,2]
[311600886,1705264263040,-500.0,0.0003041,2]
[311600887,1705264263050,-502.73214429,0.0003041,2]
[311600888,1705264263060,-1190.52,0.0003041,2]
[311600889,1705264263070,-611.32,0.0003041,2]
[311600890,1705264263081,-966.98,0.0003041,2]
[311600891,1705264263091,-500.0,0.0003041,2]
[311600892,1705264263103,-1150.22,0.0003041,2]
[311600893,1705264263112,-500.0,0.0003041,2]
[311600894,1705264263122,-500.0,0.0003041,2]
[311600895,1705264263135,-500.0,0.0003041,2]
[311600896,1705264263147,-500.0,0.0003041,2]
[311600897,1705264263157,-804.23,0.0003041,2]
[311600898,1705264263167,-500.0,0.0003041,2]
[311600899,1705264263176,-500.0,0.0003041,2]
[311600900,1705264263186,-500.0,0.0003041,2]
[311600901,1705264263195,-881.95,0.0003041,2]
[311600902,1705264263204,-500.0,0.0003041,2]
[311600903,1705264263214,-500.0,0.0003041,2]
[311600904,1705264263223,-500.0,0.0003041,2]
[311600905,1705264263233,-500.0,0.0003041,2]
[311600906,1705264263242,-523.69,0.0003041,2]
[311600907,1705264263253,-604.18,0.0003041,2]
[311600908,1705264263263,-737.47,0.0003041,2]
[311600909,1705264263273,-500.0,0.0003041,2]
[311600910,1705264263283,-500.0,0.0003041,2]
[311600911,1705264263292,-816.74,0.0003041,2]
[311600912,1705264263302,-500.0,0.0003041,2]
[311600913,1705264263312,-500.0,0.0003041,2]
[311600914,1705264263322,-500.0,0.0003041,2]
[311600915,1705264263333,-500.0,0.0003041,2]
[311600916,1705264263348,-500.0,0.0003041,2]
[311600917,1705264263358,-500.0,0.0003041,2]
[311600918,1705264263368,-500.0,0.0003041,2]
[311600919,1705264263379,-1018.42,0.0003041,2]
[311600920,1705264263388,-500.0,0.0003041,2]
[311600921,1705264263398,-500.0,0.0003041,2]
[311600922,1705264263409,-500.0,0.0003041,2]
[311600923,1705264263419,-691.77,0.0003041,2]
[311600924,1705264263428,-532.86,0.0003041,2]
[311600925,1705264263437,-500.0,0.0003041,2]
[311600926,1705264263447,-500.0,0.0003041,2]
[311600927,1705264263456,-500.0,0.0003041,2]
[311600928,1705264263465,-500.0,0.0003041,2]
[311600929,1705264263474,-500.0,0.0003041,2]
[311600930,1705264263484,-500.0,0.0003041,2]
[311600931,1705264263493,-500.0,0.0003041,2]
[311600932,1705264263502,-500.0,0.0003041,2]
[311600933,1705264263511,-500.0,0.0003041,2]
[311600934,1705264263520,-624.45,0.0003041,2]
[311600935,1705264263529,-592.67,0.0003041,2]
[311600936,1705264263538,-500.0,0.0003041,2]
[311600937,1705264263547,-840.8,0.0003041,2]
[311600938,1705264263557,-901.33,0.0003041,2]
[311600939,1705264263566,-1035.43,0.0003041,2]
[311600940,1705264263575,-500.0,0.0003041,2]
[311600941,1705264263584,-500.0,0.0003041,2]
[311600942,1705264263593,-386.00335276,0.0003041,2]
[311600943,1705264263603,-983.46,0.0003041,2]
[311600944,1705264263612,-500.0,0.0003041,2]
[311600945,1705264263622,-500.0,0.0003041,2]
[311600946,1705264263630,-500.0,0.0003041,2]
[311600947,1705264263639,-500.0,0.0003041,2]
[311600948,1705264263648,-705.45,0.0003041,2]
[311600949,1705264263658,-500.0,0.0003041,2]
[311600950,1705264263666,-511.79,0.0003041,2]
[311600951,1705264263675,-500.0,0.0003041,2]
[311600952,1705264263685,-531.03,0.0003041,2]
[311600953,1705264263694,-583.5,0.0003041,2]
[311600954,1705264263703,-500.0,0.0003041,2]
[311600955,1705264263712,-501.06425444,0.0003041,2]
[311600956,1705264263721,-652.55,0.0003041,2]
[311600957,1705264263741,-500.0,0.0003041,2]
[311600958,1705264263751,-500.0,0.0003041,2]
[311600959,1705264263760,-500.0,0.0003041,2]
[311600960,1705264263772,-519.09,0.0003041,2]
[311600961,1705264263781,-500.0,0.0003041,2]
[311600962,1705264263791,-500.0,0.0003041,2]
[311600963,1705264263800,-603.94,0.0003041,2]
[311600964,1705264263810,-782.01,0.0003041,2]
[311600965,1705264263819,-500.0,0.0003041,2]
[311600966,1705264263829,-500.0,0.0003041,2]
[311600967,1705264263838,-919.27,0.0003041,2]
[311600968,1705264263847,-655.09,0.0003041,2]
[311600969,1705264263857,-340.54007052,0.0003041,2]
[311600970,1705264263866,-501.66142051,0.0003041,2]
[311600971,1705264263875,-500.0,0.0003041,2]
[311600972,1705264263884,-848.01,0.0003041,2]
[311600973,1705264263893,-300.0,0.0003041,2]
[311600974,1705264263903,-500.0,0.0003041,2]
[311600975,1705264263912,-500.0,0.0003041,2]
[311600976,1705264263922,-500.0,0.0003041,2]
[311600977,1705264263932,-500.0,0.0003041,2]
[311600978,1705264263941,-512.56,0.0003041,2]
[311600979,1705264263952,-500.0,0.0003041,2]
[311600980,1705264263962,-500.0,0.0003041,2]
[311600981,1705264263971,-912.72,0.0003041,2]
[311600982,1705264263981,-773.77,0.0003041,2]
[311600983,1705264263990,-500.0,0.0003041,2]
[311600984,1705264264000,-500.0,0.0003041,2]
[311600985,1705264264009,-500.0,0.0003041,2]
[311600986,1705264264019,-932.74,0.0003041,2]
[311600987,1705264264028,-672.78,0.0003041,2]
[311600988,1705264264037,-500.0,0.0003041,2]
[311600989,1705264264047,-500.0,0.0003041,2]
[311600990,1705264264056,-500.0,0.0003041,2]
[311600991,1705264264065,-675.44,0.0003041,2]
[311600992,1705264264075,-812.07,0.0003041,2]
[311600993,1705264264084,-592.65,0.0003041,2]
[311600994,1705264264093,-500.0,0.0003041,2]
[311600995,1705264264104,-623.53,0.0003041,2]
[311600996,1705264264113,-5000.0,0.0003041,2]
[311600997,1705264264123,-500.0,0.0003041,2]
[311600998,1705264264134,-500.0,0.0003041,2]
[311600999,1705264264146,-901.97,0.0003041,2]
[311601000,1705264264156,-500.0,0.0003041,2]
[311601001,1705264264165,-584.39,0.0003041,2]
[311601002,1705264264174,-652.39,0.0003041,2]
[311601003,1705264264183,-500.0,0.0003041,2]
[311601004,1705264264193,-500.0,0.0003041,2]
[311601005,1705264264203,-500.0,0.0003041,2]
[311601006,1705264264212,-500.0,0.0003041,2]
[311601007,1705264264222,-504.83620759,0.0003041,2]
[311601008,1705264264233,-500.0,0.0003041,2]
[311601009,1705264264242,-500.0,0.0003041,2]
[311601010,1705264264252,-1030.54,0.0003041,2]
[311601011,1705264264261,-500.0,0.0003041,2]
[311601012,1705264264271,-500.0,0.0003041,2]
[311601013,1705264264280,-500.0,0.0003041,2]
[311601014,1705264264290,-500.0,0.0003041,2]
[311601015,1705264264299,-500.0,0.0003041,2]
[311601016,1705264264308,-500.0,0.0003041,2]
[311601017,1705264264318,-500.0,0.0003041,2]
[311601018,1705264264327,-500.0,0.0003041,2]
[311601019,1705264264347,-1012.56,0.0003041,2]
[311601020,1705264264356,-602.82,0.0003041,2]
[311601021,1705264264365,-763.69,0.0003041,2]
[311601022,1705264264374,-511.46276092,0.0003041,2]